[Event "Saint Louis Norm Congress-GM 2022"]
[Site "Saint Louis"]
[Date "2022.05.21"]
[Round "4.1"]
[White "Stearman, Josiah"]
[Black "Daggupati, Balaji"]
[Result "0-1"]
[ECO "D20"]
[WhiteElo "2375"]
[BlackElo "2486"]
[Annotator "TA"]
[PlyCount "70"]
[EventDate "2022.05.20"]
[EventType "tourn"]
[EventCountry "USA"]
[SourceTitle "playchess.com"]
[Source "ChessBase"]
[SourceQuality "1"]
[TimeControl "5400+30"]

{[%evp 9,70,51,58,40,25,24,26,30,41,-35,-34,-39,-49,-150,-155,-157,0,0,0,-99,-33,-27,-27,-336,-213,-275,-24,-32,-8,-51,-50,-58,-62,-54,-41,-66,-72,-69,-71,-75,-11,-10,-6,-99,-69,-47,-78,-100,-94,-214,0,-8,0,-55,-55,-386,-366,-996,-830,-954,-962,-818,-800]} 1. d4 {[%emt 0:00:13]} d5 {[%emt 0:00:04]} 2. c4 {[%emt 0:00:11]} dxc4 {[%emt 0:00:05]} 3. e3 {[%emt 0:00:24]} e5 {[%emt 0:00:08]} 4. Bxc4 {[%emt 0:00:08]} Nc6 {[%emt 0:00:04]} 5. Nf3 {[%emt 0:02:02][%cal Bg1f3,Bf3d2,Bd2e4][%mdl 32]} e4 {[%emt 0:00:22]} 6. Nfd2 {[%emt 0:00:58] D20: Queen's Gambit Accepted: 3 e3 and 3 e4.} (6. Qb3 $5 {[%cal Rc4f7]} Nh6 7. Nfd2 $11) 6... Qg5 {[%emt 0:00:05]} 7. Nxe4 {[%emt 0:01:55]} Qxg2 {[%emt 0:00:07]} 8. Ng3 {[%emt 0:00:03] White has an edge.} Qh3 {[%emt 0:00:27] [#]} 9. e4 $146 {[%emt 0:04:45]} (9. Qf3 Nf6 10. Bf1 Qg4 11. Qxg4 Bxg4 $11) (9. Qb3 $14) ({Predecessor:} 9. Nc3 Bd6 10. Qf3 Nh6 11. Bf1 Qh4 12. Qe4+ Qxe4 13. Ngxe4 Be7 14. Nd5 O-O 15. Bg2 {1-0 (58) Andreikin,D (2728)-Alekseenko,K (2693) Yasnaya Polyana 2021}) 9... Bg4 $1 $15 {[%emt 0:05:00]} 10. f3 {[%emt 0:01:30]} O-O-O {[%emt 0:00:08][%cal Oc6d4]} (10... Bd6 $5 {[%cal Rd6g3]} 11. e5 Bb4+ 12. Bd2 Bxd2+ 13. Nxd2 Bf5 $11) 11. Be3 {[%emt 0:12:35] [#]} (11. fxg4 $15 Nxd4 12. Bf1 (12. Bxf7 $2 Bd6 $19)) 11... Bd6 $1 $17 {[%emt 0:18:31]} 12. Kf2 {[%emt 0:01:40]} Nf6 $2 {[%emt 0:00:25]} (12... f5 $1 $17 {[%cal Rf5f4] Strongly threatening ...f4!} 13. fxg4 f4 14. Bxf4 (14. Be6+ $2 Kb8 $19) 14... Bxf4) 13. Nc3 $11 {[%emt 0:01:46]} Qh4 {[%emt 0:14:59][%cal Of6h5]} 14. Qe2 {[%emt 0:08:02] [#]} (14. Qd2 $11 {remains equal.}) 14... Bh3 {[%emt 0:13:17] Black is more active.} (14... Bf4 $1 $17 15. Rad1 (15. Bxf4 Nxd4 16. fxg4 Nxe2 $17) (15. d5 Ne5) 15... g5) 15. Rad1 $15 {[%emt 0:00:59]} Bf4 {[%emt 0:05:03][%cal Of6g4]} 16. e5 $2 {[%emt 0:15:13][%mdl 8192]} (16. Bb5 $11 {and White has nothing to worry.}) 16... Rhe8 {[%emt 0:01:26][%cal Of6g4]} ({And not} 16... Nh5 17. Bxf4 Nxf4 18. Qe3 $17) 17. Bb5 {[%emt 0:08:57] [#]} Nxe5 $2 {[%emt 0:11:33]} 18. dxe5 $11 {[%emt 0:05:42] Rxd8+ is the strong threat.} Rxd1 {[%emt 0:00:53]} 19. Rxd1 {[%emt 0:01:16]} (19. Qxd1 {with more complications.} Bxe3+ 20. Kxe3 Rxe5+ 21. Kd2) 19... Rxe5 {[%emt 0:04:13] Really sharp!} 20. Bxf4 {[%emt 0:00:10]} Rxe2+ {[%emt 0:01:01]} 21. Ncxe2 {[%emt 0:00:04]} c6 {[%emt 0:02:54]} 22. Bc4 {[%emt 0:03:49]} g5 {[%emt 0:01:33][%mdl 1024] Black has compensation.} 23. Be5 {[%emt 0:00:08]} Nd7 {[%emt 0:01:31]} 24. Rd4 {[%emt 0:00:06] [#]} Qh6 {[%emt 0:04:35]} (24... Nxe5 $1 $17 25. Rxh4 gxh4) 25. Bd6 {[%emt 0:00:18]} Be6 {[%emt 0:00:53]} 26. Bxe6 {[%emt 0:00:53]} (26. Ne4 $2 Bxc4 27. Bg3 (27. Rxc4 $2 f5 $19) 27... Be6 28. Nd6+ Kd8 29. Nxb7+ Ke8 $19) (26. h4 $1 $11) 26... Qxh2+ $17 {[%emt 0:00:22]} 27. Ke3 {[%emt 0:00:06]} fxe6 {[%emt 0:00:04][%cal Bf7e6,Be6e5][%mdl 32]} 28. Ne4 {[%emt 0:00:31]} e5 {[%emt 0:02:35]} 29. Rd1 {[%emt 0:01:26] [#]} (29. Rd2 $17 {was the only defense.}) 29... Qh5 $2 {[%emt 0:02:24]} (29... Nb6 $1 $19 {[%cal Rb6c4]} 30. Kd3 Qg2) 30. Be7 $132 {[%emt 0:02:25][%cal Od1d7][%mdl 2048] aiming for Rxd7! White puts up resistance} Nb6 {[%emt 0:02:30]} (30... g4 $2 {[#]} 31. Rxd7 $1 {[%mdl 512]} gxf3 32. N2g3 $18) 31. Rd8+ {[%emt 0:03:02]} (31. N2c3 $11) 31... Kc7 $15 {[%emt 0:00:04] Hoping for ...Nd5+.} 32. Nf6 {[%emt 0:00:48][%mdl 8192] Prevents Nd5+.} ({White should try} 32. Bxg5 $15 Nc4+ 33. Kf2) 32... Nc4+ $19 {[%emt 0:00:09]} 33. Kf2 $2 {[%emt 0:00:15]} (33. Kd3 Nxb2+ 34. Kc2 (34. Ke4 $2 Qh4+ 35. Ke3 Nc4+ 36. Kd3 Qf2 $19)) 33... Qh2+ {[%emt 0:00:13] Black is clearly winning.} 34. Ke1 {[%emt 0:00:02]} Qh1+ {[%emt 0:01:05]} 35. Kf2 {[%emt 0:00:05]} Qh4+ {[%emt 0:00:10] Weighted Error Value: White=0.92/Black=0.51} 0-1

[Event "Saint Louis Norm Congress-GM 2022"]
[Site "Saint Louis"]
[Date "2022.05.21"]
[Round "4.2"]
[White "Ruiz Castillo, Joshua Daniel"]
[Black "Schitco, Ivan"]
[Result "0-1"]
[ECO "E92"]
[WhiteElo "2473"]
[BlackElo "2484"]
[Annotator "TA"]
[PlyCount "132"]
[EventDate "2022.05.20"]
[EventType "tourn"]
[EventCountry "USA"]
[SourceTitle "playchess.com"]
[Source "ChessBase"]
[SourceQuality "1"]
[TimeControl "5400+30"]

{[%evp 19,132,22,27,30,37,0,0,0,0,0,0,0,0,0,8,0,14,0,0,0,0,0,20,-30,0,-18,-23,-27,-12,-43,-33,-31,-12,-14,-7,-6,-15,0,0,-1,0,0,-3,-5,-5,-5,-6,-12,-6,-4,0,0,0,0,28,0,0,0,12,0,12,0,0,2,0,0,0,0,0,0,17,18,22,8,0,3,5,0,0,0,0,0,0,0,155,150,180,177,194,-39,-39,-750,-750,-750,-743,-743,-743,-1075,-829,-821,-820,-816,-803,-838,-603,-1209,-1194,-1110,-1078,-1030,-912,-1006,-926,-4710,-638]} 1. Nf3 {[%emt 0:00:02]} Nf6 {[%emt 0:00:56]} 2. c4 {[%emt 0:01:57]} g6 {[%emt 0:00:38]} 3. Nc3 {[%emt 0:02:09]} Bg7 {[%emt 0:00:15]} 4. e4 {[%emt 0:00:34]} d6 {[%emt 0:00:20]} 5. d4 {[%emt 0:01:38]} O-O {[%emt 0:00:08]} 6. Be2 {[%emt 0:00:18]} e5 {[%emt 0:00:32]} 7. d5 {[%emt 0:04:30]} a5 {[%emt 0:01:18]} 8. Be3 {[%emt 0:01:27]} Ng4 {[%emt 0:01:48]} 9. Bg5 {[%emt 0:00:39]} f6 {[%emt 0:01:53]} 10. Bh4 {[%emt 0:00:16]} Nh6 {[%emt 0:03:32][%cal Bg4h6,Bh6f5,Bf5d4][%mdl 32]} 11. O-O {[%emt 0:03:12] E92: King's Indian: Classical: 6 Be2 e5: 7 dxe5, 7 Be3 and Petrosian System without 7...Nbd7.} Nd7 {[%emt 0:03:15]} 12. Ne1 {[%emt 0:14:45]} g5 {[%emt 0:02:11]} 13. Bg3 {[%emt 0:00:02] The position is equal.} f5 {[%emt 0:00:56] [#]} 14. exf5 $146 {[%emt 0:17:58]} ({Predecessor:} 14. f3 Nf6 15. exf5 Bxf5 16. Bd3 Qe8 17. c5 Qg6 18. Nb5 e4 19. Bc4 Nh5 20. Bf2 g4 21. fxe4 Bxe4 22. cxd6 cxd6 {0-1 (22) Tahaoglu,U-Koch,H (2365) ICCF email 2011}) 14... Nxf5 {[%emt 0:00:12]} 15. Ne4 {[%emt 0:14:22]} b6 {[%emt 0:01:29]} 16. Nf3 {[%emt 0:02:37]} h6 {[%emt 0:01:31]} 17. Nfd2 {[%emt 0:00:49]} Qe7 {[%emt 0:10:07]} 18. Nc3 {[%emt 0:03:40]} Nf6 {[%emt 0:10:31]} 19. Nde4 {[%emt 0:00:55]} Nd4 {[%emt 0:02:05]} 20. Nxf6+ {[%emt 0:01:58]} Qxf6 {[%emt 0:01:03]} 21. Bg4 {[%emt 0:00:03]} (21. Bh5 $142) 21... Bf5 {[%emt 0:03:00]} 22. Rc1 {[%emt 0:02:28]} e4 {[%emt 0:03:14]} 23. Re1 {[%emt 0:02:57]} Rae8 {[%emt 0:00:58]} 24. Bxf5 {[%emt 0:00:01]} Nxf5 {[%emt 0:07:02]} 25. Nxe4 {[%emt 0:10:32]} Qxb2 {[%emt 0:01:20]} 26. Re2 {[%emt 0:00:04]} Qa3 {[%emt 0:04:15]} 27. Qd2 $1 {[%emt 0:00:06]} Nd4 {[%emt 0:09:58]} 28. Re3 {[%emt 0:03:43]} Qb4 {[%emt 0:01:44]} 29. Qd3 {[%emt 0:00:10][%cal Oe4f6]} Qb2 {[%emt 0:01:51][%csl LRa2,LRc1]} 30. Rce1 {[%emt 0:00:09][%cal Oe4f6] Hoping for Nf6+!} Qc2 {[%emt 0:00:52]} 31. Qxc2 {[%emt 0:07:09]} Nxc2 {[%emt 0:00:04]} 32. Nf6+ $1 {[%emt 0:00:00]} Bxf6 {[%emt 0:00:12]} 33. Rxe8 {[%emt 0:00:01] R1e6 is the strong threat.} Nxe1 {[%emt 0:00:03]} 34. Rxe1 $11 {[%emt 0:00:01][%mdl 4096] Endgame KRB-KRB} a4 {[%emt 0:01:02]} 35. Kf1 {[%emt 0:00:07]} a3 {[%emt 0:02:52]} 36. f3 {[%emt 0:02:31]} Ra8 {[%emt 0:02:59]} 37. Rc1 {[%emt 0:00:01]} Kf7 {[%emt 0:03:30]} 38. Ke2 {[%emt 0:00:14]} h5 {[%emt 0:00:26]} 39. h3 {[%emt 0:00:47]} Bd4 {[%emt 0:04:44]} 40. Kd3 {[%emt 0:00:12]} Bc5 {[%emt 0:00:17]} 41. Be1 {[%emt 0:00:25]} g4 {[%emt 0:02:04]} 42. fxg4 {[%emt 0:02:28]} hxg4 {[%emt 0:00:02]} 43. h4 {[%emt 0:01:13]} Kg6 {[%emt 0:06:20]} 44. Bg3 {[%emt 0:00:32]} Ra4 {[%emt 0:02:17]} 45. Rb1 {[%emt 0:01:01]} Kh5 {[%emt 0:00:23]} 46. Kc3 {[%emt 0:00:04]} Ra8 $1 {[%emt 0:00:45]} 47. Rf1 {[%emt 0:00:30]} b5 {[%emt 0:03:45]} 48. Rf5+ {[%emt 0:01:17]} Kg6 {[%emt 0:00:22]} 49. Rg5+ {[%emt 0:00:02]} Kh7 {[%emt 0:01:41]} 50. Rh5+ {[%emt 0:01:22]} (50. Rxg4 b4+ 51. Kb3 Re8 $17) 50... Kg6 {[%emt 0:00:03]} 51. Rg5+ {[%emt 0:00:00]} Kf6 $2 {[%emt 0:00:30]} ({Black should try} 51... Kh7 $11) 52. Rxg4 {[%emt 0:00:13]} b4+ {[%emt 0:00:15]} 53. Kb3 $1 {[%emt 0:01:02]} Re8 {[%emt 0:00:02] [#] White must now prevent ...Re3+.} 54. Rf4+ $2 {[%emt 0:01:17]} (54. Bf2 $1 $18 {[%mdl 512]}) 54... Kg6 $15 {[%emt 0:00:13]} 55. Rf3 {[%emt 0:00:50][%mdl 8192] White does not recover from this.} (55. Bf2 $15) 55... Re2 $19 {[%emt 0:00:14] Black is clearly winning.} 56. Bf4 {[%emt 0:00:13]} Rb2+ {[%emt 0:00:31][%mdl 64] Deflection} 57. Ka4 {[%emt 0:00:00]} Rxa2 {[%emt 0:02:28]} 58. g4 {[%emt 0:00:01]} Rg2 {[%emt 0:00:56] Threatens to win with ...a2.} 59. h5+ {[%emt 0:00:02]} Kh7 {[%emt 0:00:12] And now ...a2 would win.} 60. Bg5 {[%emt 0:00:41]} a2 {[%emt 0:01:31]} 61. Bf6 {[%emt 0:00:06]} Rg1 {[%emt 0:00:34]} 62. Kb3 {[%emt 0:00:16]} a1=Q {[%emt 0:00:12]} 63. Bxa1 {[%emt 0:00:01]} Rxa1 {[%emt 0:00:01]} 64. Rf7+ {[%emt 0:00:01]} Kg8 {[%emt 0:00:58]} 65. Rxc7 {[%emt 0:00:07]} Ra3+ {[%emt 0:00:24]} 66. Kb2 {[%emt 0:00:04]} Rg3 {[%emt 0:00:04] Weighted Error Value: White=0.37/Black=0.15 (very precise)} (66... Bd4+ $142 67. Kc1 b3) 0-1

[Event "Saint Louis Norm Congress-GM 2022"]
[Site "Saint Louis"]
[Date "2022.05.21"]
[Round "4.3"]
[White "Belous, Vladimir"]
[Black "Kavutskiy, Konstantin"]
[Result "1/2-1/2"]
[ECO "A26"]
[WhiteElo "2525"]
[BlackElo "2407"]
[Annotator "TA"]
[PlyCount "59"]
[EventDate "2022.05.20"]
[EventType "tourn"]
[EventCountry "USA"]
[SourceTitle "playchess.com"]
[Source "ChessBase"]
[SourceQuality "1"]
[TimeControl "5400+30"]

{[%evp 28,59,-12,-9,0,0,0,0,0,-9,-6,-32,-3,-7,-4,0,-19,-22,-29,-37,-40,-39,-22,-72,-58,-56,-66,-51,-51,-46,-6,-4,-2,-8]} 1. c4 {[%emt 0:00:04]} g6 {[%emt 0:02:35]} 2. Nc3 {[%emt 0:00:52]} Bg7 {[%emt 0:00:08]} 3. Nf3 {[%emt 0:01:02]} d6 {[%emt 0:01:04]} 4. g3 {[%emt 0:02:38]} Nf6 {[%emt 0:00:07]} 5. Bg2 {[%emt 0:00:03]} O-O {[%emt 0:00:12]} 6. O-O {[%emt 0:00:06]} Nc6 {[%emt 0:00:07]} 7. d3 {[%emt 0:00:46]} e5 {[%emt 0:00:09]} 8. Rb1 {[%emt 0:00:29]} a5 {[%emt 0:00:20]} 9. a3 {[%emt 0:00:01]} Re8 {[%emt 0:01:00]} 10. Bg5 {[%emt 0:02:06]} h6 {[%emt 0:00:40]} 11. Bxf6 {[%emt 0:00:02]} Bxf6 {[%emt 0:00:15]} 12. b4 {[%emt 0:00:04]} axb4 {[%emt 0:00:30]} 13. axb4 {[%emt 0:00:02]} Bg7 {[%emt 0:02:09]} 14. b5 {[%emt 0:00:55]} Ne7 {[%emt 0:00:26]} 15. Qb3 {[%emt 0:10:19]} c6 {[%emt 0:04:20] A26: English Opening vs King's Indian with ...Nc6 and d3.} 16. Ra1 {[%emt 0:07:31]} Be6 {[%emt 0:03:09]} 17. Rxa8 {[%emt 0:06:32]} Qxa8 {[%emt 0:00:06]} 18. Nd2 {[%emt 0:00:04]} Qa5 {[%emt 0:09:48][%cal Od6d5] [#]} 19. Nce4 $146 {[%emt 0:07:39]} ({Predecessor:} 19. Rc1 Ra8 20. Nde4 Rd8 21. Rc2 f5 22. Ra2 Qc7 23. Nd2 Rb8 24. Ra4 Bf7 25. Qa3 {½-½ (38) Kahl,F (2361)-Chumanov,V (2339) LSS email 2019}) 19... Rd8 {[%emt 0:06:25]} 20. bxc6 {[%emt 0:01:36]} bxc6 {[%emt 0:00:19]} 21. Qb7 {[%emt 0:00:07] [#] Threatens to win with Nb3.} Rd7 {[%emt 0:06:42]} 22. Qb8+ {[%emt 0:00:56]} Qd8 {[%emt 0:00:31]} 23. Rb1 {[%emt 0:01:53]} f5 {[%emt 0:09:01]} 24. Nc3 {[%emt 0:03:54]} e4 {[%emt 0:04:13]} 25. Na4 {[%emt 0:11:09]} (25. Qb4 $11) 25... exd3 {[%emt 0:00:59]} 26. exd3 {[%emt 0:00:04]} Qxb8 {[%emt 0:01:17]} 27. Rxb8+ {[%emt 0:00:21]} Kf7 {[%emt 0:00:07] Hoping for ...Ra7.} 28. c5 {[%emt 0:00:21]} dxc5 {[%emt 0:04:48]} 29. Nxc5 {[%emt 0:00:28] Pair of Knights!} Ra7 {[%emt 0:00:07]} 30. Nxe6 {[%emt 0:00:58] Weighted Error Value: White=0.08 (flawless) /Black=0.08 (flawless)} 1/2-1/2

[Event "Saint Louis Norm Congress-GM 2022"]
[Site "Saint Louis"]
[Date "2022.05.21"]
[Round "4.4"]
[White "Brodsky, David"]
[Black "Matviishen, Viktor"]
[Result "1/2-1/2"]
[ECO "C45"]
[WhiteElo "2484"]
[BlackElo "2517"]
[Annotator "TA"]
[PlyCount "116"]
[EventDate "2022.05.20"]
[EventType "tourn"]
[EventCountry "USA"]
[SourceTitle "playchess.com"]
[Source "ChessBase"]
[SourceQuality "1"]
[TimeControl "5400+30"]

{[%evp 12,116,5,0,0,-2,12,22,16,22,14,18,29,10,20,17,12,13,14,14,12,14,9,10,15,27,69,78,92,75,70,54,68,60,62,62,41,22,68,60,68,-2,-2,-6,-7,-26,-28,-23,-9,-35,-24,-35,-27,-35,-32,-38,-32,-12,-25,-56,-44,-69,-8,-8,-8,-8,0,0,0,0,0,0,0,-7,0,-29,-26,-50,0,-35,-12,-43,-15,-12,-19,-1011,-1062,-772,-929,-824,-793,-758,-772,-758,-750,-687,-541,-737,-741,-743,-743,-695,0,-529,0,-587,0]} 1. e4 {[%emt 0:00:01]} e5 {[%emt 0:00:06]} 2. Nf3 {[%emt 0:00:03][%cal Bg1f3,Bf3d4,Bd4b3][%mdl 32]} Nc6 {[%emt 0:00:05]} 3. d4 {[%emt 0:00:03]} exd4 {[%emt 0:00:07]} 4. Nxd4 {[%emt 0:00:05]} Bc5 {[%emt 0:00:06]} 5. Nb3 {[%emt 0:00:03]} Bb6 {[%emt 0:00:05]} 6. Nc3 {[%emt 0:00:09]} Nf6 {[%emt 0:00:05]} 7. Bg5 {[%emt 0:00:09]} O-O {[%emt 0:00:08] C45: Scotch Game.} 8. Qe2 {[%emt 0:00:11]} Nd4 {[%emt 0:00:34]} (8... h6 $5 {[%cal Rh6g5]} 9. Be3 d5 $15) 9. Qd2 {[%emt 0:00:59]} Nxb3 {[%emt 0:00:09] The position is equal.} 10. axb3 {[%emt 0:00:04]} h6 {[%emt 0:00:49]} 11. Be3 {[%emt 0:00:08]} Bxe3 {[%emt 0:00:08]} 12. Qxe3 {[%emt 0:00:05]} Re8 {[%emt 0:03:31]} 13. O-O-O {[%emt 0:00:52]} c6 {[%emt 0:04:55]} 14. Qd4 {[%emt 0:02:30]} Qa5 {[%emt 0:07:57][%cal Od7d5] Prevents e5.} 15. Kb1 {[%emt 0:01:39]} (15. Bd3 {keeps more tension.} Qa1+ 16. Kd2 Qa5 17. Rhe1) 15... Qb6 {[%emt 0:00:26]} 16. Qxb6 {[%emt 0:09:25]} axb6 {[%emt 0:00:06]} 17. f3 {[%emt 0:00:03]} b5 {[%emt 0:06:53]} 18. b4 {[%emt 0:01:27] [#]} b6 $146 {[%emt 0:12:14]} ({Predecessor:} 18... Rd8 19. Be2 d6 20. Rd4 Kf8 21. b3 Ne8 22. Kb2 g6 23. f4 Ng7 24. Rd2 h5 {½-½ (34) Ehrbar,T (2329)-Antonov,V (2391) ICCF email 2019}) 19. g4 {[%emt 0:20:13]} g5 {[%emt 0:05:18]} 20. Bg2 {[%emt 0:20:25]} Kg7 {[%emt 0:06:32]} 21. Rd6 {[%emt 0:04:21]} Re5 {[%emt 0:03:36]} 22. Ne2 {[%emt 0:02:31]} Ne8 {[%emt 0:00:32]} 23. Rd2 {[%emt 0:00:52] White is more active.} d6 {[%emt 0:04:10]} 24. Ng3 {[%emt 0:04:05]} Be6 {[%emt 0:01:49]} (24... Re7 $11) 25. b3 $14 {[%emt 0:01:43]} Rd8 {[%emt 0:03:29]} 26. h4 {[%emt 0:01:43]} (26. Rhd1 $14) 26... Nf6 $11 {[%emt 0:07:43][%cal Be8f6,Bf6d5,Bd5b4][%mdl 32]} 27. Kb2 {[%emt 0:04:52]} d5 {[%emt 0:01:32]} 28. Bf1 {[%emt 0:02:40]} Rd7 {[%emt 0:02:02][%cal Rd5e4]} 29. exd5 {[%emt 0:00:42]} Rdxd5 {[%emt 0:00:08]} (29... Nxd5 {seems wilder.} 30. hxg5 hxg5 31. Rd4 Nf4) 30. Rxd5 {[%emt 0:02:53]} Nxd5 {[%emt 0:00:52]} 31. hxg5 {[%emt 0:02:28]} hxg5 {[%emt 0:00:05]} 32. Bd3 {[%emt 0:00:19]} Nxb4 {[%emt 0:00:31]} 33. Be4 {[%emt 0:00:32]} Kf6 {[%emt 0:07:41]} 34. Rh8 {[%emt 0:02:25]} Ke7 {[%emt 0:00:06]} 35. Rb8 {[%emt 0:01:33]} Nd5 {[%emt 0:04:16]} 36. Bf5 {[%emt 0:07:34]} Kd6 {[%emt 0:14:52]} (36... b4 $15 37. Rb7+ Kd8 38. Bxe6 Rxe6) 37. Bxe6 {[%emt 0:04:47]} Rxe6 {[%emt 0:01:48][%mdl 4096] Endgame KRN-KRN} 38. Ne4+ $1 {[%emt 0:00:28]} Ke5 {[%emt 0:01:39] Hoping for ...Kf4.} 39. Nxg5 {[%emt 0:00:26]} Re7 {[%emt 0:00:21]} 40. Rf8 {[%emt 0:01:49]} f6 {[%emt 0:00:05]} 41. Ne4 {[%emt 0:00:28]} b4 {[%emt 0:00:07]} 42. Nf2 {[%emt 0:02:28]} c5 {[%emt 0:02:39]} 43. Nd3+ {[%emt 0:00:20]} Kd6 {[%emt 0:00:33]} 44. Kc1 {[%emt 0:00:45]} Rh7 {[%emt 0:00:48]} ({Better is} 44... Re3 $15) 45. Nf2 {[%emt 0:00:47]} Rh2 {[%emt 0:00:38]} 46. Ne4+ {[%emt 0:00:15]} Ke5 {[%emt 0:00:18]} 47. Re8+ {[%emt 0:00:29]} Kf4 {[%emt 0:00:00]} 48. Nd2 $2 {[%emt 0:00:46][%mdl 8192] [#]} (48. Rf8 $11) 48... Rh1+ $1 $19 {[%emt 0:01:09]} 49. Kb2 {[%emt 0:00:01]} Nc3 {[%emt 0:00:07]} 50. Re6 {[%emt 0:00:43]} Rd1 {[%emt 0:00:12]} 51. Rd6 {[%emt 0:00:24]} b5 {[%emt 0:00:30]} 52. Rd3 {[%emt 0:01:01]} Re1 {[%emt 0:00:50] Threatens to win with ...Rd1.} 53. Rd6 {[%emt 0:00:23]} Ke3 {[%emt 0:00:46]} 54. Rd3+ {[%emt 0:00:50] [#]} Ke2 $1 {[%emt 0:00:02] ( -> ...Rd1)} 55. f4 {[%emt 0:00:19]} Nd1+ {[%emt 0:00:46]} 56. Ka2 {[%emt 0:00:07]} Nc3+ {[%emt 0:00:06]} 57. Kb2 {[%emt 0:00:02]} Nd1+ {[%emt 0:01:01]} 58. Ka2 {[%emt 0:00:01]} Nc3+ $2 {[%emt 0:00:29] Weighted Error Value: White=0.26 (precise) /Black=0.22 (precise)} ({Black should try} 58... Nf2 $19 59. Rd8 Rd1) 1/2-1/2